[Event "Early-Titled-Tuesday-Blitz-February-27-2024"]
[Site "Chess.com"]
[Date "2024.02.27"]
[Round "3"]
[White "Ati1517"]
[Black "ikhasu"]
[Result "0-1"]
[WhiteElo "2245"]
[BlackElo "2461"]
[TimeControl "180+1"]
[EndTime "8:24:04 PST"]
[Termination "ikhasu won by resignation"]

1. e4 {[%clk 0:03:00.9]} 1... e5 {[%clk 0:02:59.6]} 2. Nf3 {[%clk 0:03:00.7]}
2... Nc6 {[%clk 0:03:00.2]} 3. d4 {[%clk 0:02:59.8]} 3... exd4 {[%clk
0:02:59.4]} 4. Bc4 {[%clk 0:02:59.4]} 4... Nf6 {[%clk 0:02:56.5]} 5. O-O {[%clk
0:02:58.5]} 5... Nxe4 {[%clk 0:02:40.2]} 6. Re1 {[%clk 0:02:57]} 6... d5 {[%clk
0:02:40.6]} 7. Bxd5 {[%clk 0:02:55.8]} 7... Qxd5 {[%clk 0:02:40.8]} 8. Nc3
{[%clk 0:02:55.7]} 8... Qh5 {[%clk 0:02:29.8]} 9. Rxe4+ {[%clk 0:02:52.2]} 9...
Be6 {[%clk 0:02:29]} 10. Nxd4 {[%clk 0:02:47.4]} 10... Qxd1+ {[%clk 0:02:27.7]}
11. Nxd1 {[%clk 0:02:47.3]} 11... O-O-O {[%clk 0:02:21]} 12. Be3 {[%clk
0:02:47]} 12... Bd5 {[%clk 0:02:16.1]} 13. Nxc6 {[%clk 0:02:44.6]} 13... Bxc6
{[%clk 0:02:16.2]} 14. Rd4 {[%clk 0:02:43.8]} 14... Bd6 {[%clk 0:02:14.2]} 15.
Nc3 {[%clk 0:02:43.2]} 15... Rhe8 {[%clk 0:02:11.8]} 16. Rad1 {[%clk 0:02:41.7]}
16... h6 {[%clk 0:02:10.4]} 17. a3 {[%clk 0:02:18.8]} 17... f5 {[%clk
0:02:07.3]} 18. g3 {[%clk 0:02:07.9]} 18... g5 {[%clk 0:02:03.2]} 19. R1d2
{[%clk 0:01:56.3]} 19... f4 {[%clk 0:02:00.4]} 20. gxf4 {[%clk 0:01:55]} 20...
gxf4 {[%clk 0:01:59.9]} 0-1

[Event "Early-Titled-Tuesday-Blitz-February-27-2024"]
[Site "Chess.com"]
[Date "2024.02.27"]
[Round "3"]
[White "publicaccountcze"]
[Black "lagunanivaria"]
[Result "0-1"]
[WhiteElo "2241"]
[BlackElo "2450"]
[TimeControl "180+1"]
[EndTime "8:24:14 PST"]
[Termination "lagunanivaria won by resignation"]

1. e4 {[%clk 0:03:00.9]} 1... e5 {[%clk 0:02:59.4]} 2. Nf3 {[%clk 0:02:58.4]}
2... Nc6 {[%clk 0:02:59.6]} 3. Bb5 {[%clk 0:02:56.3]} 3... a6 {[%clk 0:02:59.6]}
4. Ba4 {[%clk 0:02:56.3]} 4... Nf6 {[%clk 0:02:59.6]} 5. O-O {[%clk 0:02:55]}
5... b5 {[%clk 0:03:00.1]} 6. Bb3 {[%clk 0:02:54]} 6... Bc5 {[%clk 0:03:00.6]}
7. c3 {[%clk 0:02:40.9]} 7... d6 {[%clk 0:03:00.5]} 8. d4 {[%clk 0:02:40.2]}
8... Bb6 {[%clk 0:03:01]} 9. dxe5 {[%clk 0:02:35.5]} 9... Nxe5 {[%clk
0:03:01.9]} 10. Nxe5 {[%clk 0:02:35.7]} 10... dxe5 {[%clk 0:03:02.8]} 11. Qxd8+
{[%clk 0:02:35.9]} 11... Kxd8 {[%clk 0:03:03.7]} 12. Bg5 {[%clk 0:02:34.6]}
12... Ke7 {[%clk 0:03:02.8]} 13. Nd2 {[%clk 0:02:34.4]} 13... h6 {[%clk
0:03:02.7]} 14. Bh4 {[%clk 0:02:33.8]} 14... g5 {[%clk 0:02:53.7]} 15. Bg3
{[%clk 0:02:33.6]} 15... Nd7 {[%clk 0:02:54.4]} 16. c4 {[%clk 0:02:28.2]} 16...
f6 {[%clk 0:02:51.1]} 17. a4 {[%clk 0:02:21.5]} 17... b4 {[%clk 0:02:48.3]} 18.
Bc2 {[%clk 0:02:18.3]} 18... Nc5 {[%clk 0:02:47.1]} 19. Nb3 {[%clk 0:02:08.9]}
19... Nxb3 {[%clk 0:02:45.3]} 20. Bxb3 {[%clk 0:02:09.2]} 20... Be6 {[%clk
0:02:45]} 21. Rac1 {[%clk 0:02:06.7]} 21... Bc5 {[%clk 0:02:44.3]} 22. Bc2
{[%clk 0:02:05.9]} 22... Rad8 {[%clk 0:02:42]} 23. b3 {[%clk 0:02:05.1]} 23...
Rd2 {[%clk 0:02:39.3]} 24. Rfd1 {[%clk 0:02:04.6]} 24... Rhd8 {[%clk 0:02:38]}
25. Kf1 {[%clk 0:02:03]} 25... h5 {[%clk 0:02:36.2]} 26. f3 {[%clk 0:01:56]}
26... h4 {[%clk 0:02:32.1]} 27. Be1 {[%clk 0:01:55.3]} 27... Rxc2 {[%clk
0:02:15.1]} 28. Rxd8 {[%clk 0:01:33]} 28... Rxc1 {[%clk 0:02:14.5]} 0-1

[Event "Early-Titled-Tuesday-Blitz-February-27-2024"]
[Site "Chess.com"]
[Date "2024.02.27"]
[Round "3"]
[White "Msb2"]
[Black "ChessSkool"]
[Result "1/2-1/2"]
[WhiteElo "3020"]
[BlackElo "2740"]
[TimeControl "180+1"]
[EndTime "8:24:16 PST"]
[Termination "Game drawn by repetition"]

1. d4 {[%clk 0:03:00.9]} 1... d5 {[%clk 0:03:00]} 2. c4 {[%clk 0:03:01.2]} 2...
e6 {[%clk 0:03:00.3]} 3. Nc3 {[%clk 0:03:01.5]} 3... Nf6 {[%clk 0:03:00.7]} 4.
cxd5 {[%clk 0:03:01.7]} 4... exd5 {[%clk 0:03:01.6]} 5. Bg5 {[%clk 0:03:02]}
5... c6 {[%clk 0:03:02]} 6. e3 {[%clk 0:03:02.7]} 6... Bf5 {[%clk 0:03:02.6]} 7.
Nge2 {[%clk 0:03:01.6]} 7... h6 {[%clk 0:02:47.2]} 8. Bf4 {[%clk 0:03:00.6]}
8... Bd6 {[%clk 0:02:46.4]} 9. Ng3 {[%clk 0:03:00.8]} 9... Be6 {[%clk 0:02:47]}
10. Bxd6 {[%clk 0:03:00.5]} 10... Qxd6 {[%clk 0:02:47.9]} 11. Bd3 {[%clk
0:03:01.3]} 11... Nbd7 {[%clk 0:02:46.4]} 12. O-O {[%clk 0:03:01.6]} 12... O-O
{[%clk 0:02:46.7]} 13. Qd2 {[%clk 0:03:00.2]} 13... Rfe8 {[%clk 0:02:44.7]} 14.
f3 {[%clk 0:02:59.3]} 14... c5 {[%clk 0:02:42.9]} 15. Nb5 {[%clk 0:02:57.6]}
15... Qb6 {[%clk 0:02:42.8]} 16. dxc5 {[%clk 0:02:58.2]} 16... Nxc5 {[%clk
0:02:42.5]} 17. Nd4 {[%clk 0:02:56.4]} 17... Nxd3 {[%clk 0:02:32.5]} 18. Qxd3
{[%clk 0:02:57.3]} 18... Nd7 {[%clk 0:02:32.7]} 19. b3 {[%clk 0:02:53.7]} 19...
Ne5 {[%clk 0:02:31.6]} 20. Qb5 {[%clk 0:02:50.3]} 20... Nc6 {[%clk 0:02:17.8]}
21. Qxb6 {[%clk 0:02:48.6]} 21... axb6 {[%clk 0:02:18.7]} 22. Nge2 {[%clk
0:02:46.7]} 22... Ra3 {[%clk 0:02:10.2]} 23. Nb5 {[%clk 0:02:39.3]} 23... Ra5
{[%clk 0:02:10]} 24. a4 {[%clk 0:02:39.9]} 24... Bd7 {[%clk 0:01:48.2]} 25. Kf2
{[%clk 0:02:37.2]} 25... Nb4 {[%clk 0:01:48.1]} 26. Ned4 {[%clk 0:02:24.4]}
26... Bxb5 {[%clk 0:01:42.9]} 27. axb5 {[%clk 0:02:19.9]} 27... Nd3+ {[%clk
0:01:31.4]} 28. Ke2 {[%clk 0:02:18.5]} 28... Nf4+ {[%clk 0:01:31.8]} 29. Kf2
{[%clk 0:02:18.9]} 29... Nd3+ {[%clk 0:01:32.2]} 30. Ke2 {[%clk 0:02:12.2]}
30... Nf4+ {[%clk 0:01:32.5]} 31. Kf2 {[%clk 0:02:12.9]} 31... Nd3+ {[%clk
0:01:33]} 1/2-1/2

[Event "Early-Titled-Tuesday-Blitz-February-27-2024"]
[Site "Chess.com"]
[Date "2024.02.27"]
[Round "3"]
[White "ClauSanLuis"]
[Black "SharapovEvgeny"]
[Result "0-1"]
[WhiteElo "2255"]
[BlackElo "2528"]
[TimeControl "180+1"]
[EndTime "8:24:19 PST"]
[Termination "SharapovEvgeny won by resignation"]

1. d4 {[%clk 0:02:56.9]} 1... Nf6 {[%clk 0:02:58.6]} 2. Bg5 {[%clk 0:02:56.8]}
2... c5 {[%clk 0:02:58.2]} 3. Bxf6 {[%clk 0:02:56.9]} 3... gxf6 {[%clk
0:02:58.1]} 4. d5 {[%clk 0:02:56.5]} 4... Qb6 {[%clk 0:02:58]} 5. Qc1 {[%clk
0:02:56]} 5... f5 {[%clk 0:02:58.1]} 6. e3 {[%clk 0:02:51.1]} 6... d6 {[%clk
0:02:57.8]} 7. Ne2 {[%clk 0:02:46.3]} 7... Bg7 {[%clk 0:02:57.6]} 8. c3 {[%clk
0:02:44.5]} 8... Nd7 {[%clk 0:02:57.4]} 9. Nf4 {[%clk 0:02:45]} 9... Nf6 {[%clk
0:02:57.2]} 10. g3 {[%clk 0:02:37.1]} 10... O-O {[%clk 0:02:56.2]} 11. Bg2
{[%clk 0:02:37.3]} 11... e5 {[%clk 0:02:55.3]} 12. dxe6 {[%clk 0:02:32.9]} 12...
fxe6 {[%clk 0:02:55.1]} 13. O-O {[%clk 0:02:32.6]} 13... e5 {[%clk 0:02:49]} 14.
Nd5 {[%clk 0:02:31.2]} 14... Nxd5 {[%clk 0:02:49]} 15. Bxd5+ {[%clk 0:02:30.3]}
15... Kh8 {[%clk 0:02:49.3]} 16. Nd2 {[%clk 0:02:18.7]} 16... Qc7 {[%clk
0:02:49.1]} 17. f4 {[%clk 0:02:14.4]} 17... Rb8 {[%clk 0:02:46.6]} 18. a4 {[%clk
0:02:13.6]} 18... Bd7 {[%clk 0:02:46.3]} 19. Qd1 {[%clk 0:02:02.4]} 19... Bc6
{[%clk 0:02:46.1]} 20. Nc4 {[%clk 0:01:57.7]} 20... Rbd8 {[%clk 0:02:44.8]} 21.
a5 {[%clk 0:01:56]} 21... Bb5 {[%clk 0:02:36.7]} 22. Rf2 {[%clk 0:01:53.3]}
22... exf4 {[%clk 0:02:33.1]} 23. exf4 {[%clk 0:01:48.8]} 23... Bxc4 {[%clk
0:02:25.9]} 24. Bxc4 {[%clk 0:01:48.2]} 24... d5 {[%clk 0:02:26.4]} 25. Bf1
{[%clk 0:01:47.7]} 25... d4 {[%clk 0:02:26.1]} 26. cxd4 {[%clk 0:01:42.6]} 26...
Bxd4 {[%clk 0:02:25.2]} 27. Qf3 {[%clk 0:01:37.1]} 27... Bxf2+ {[%clk
0:02:22.8]} 28. Qxf2 {[%clk 0:01:37.2]} 28... Qd6 {[%clk 0:02:21.5]} 29. Re1
{[%clk 0:01:36.4]} 29... Qd4 {[%clk 0:02:20.4]} 30. Re3 {[%clk 0:01:36.4]} 30...
Rfe8 {[%clk 0:02:18.6]} 0-1

[Event "Early-Titled-Tuesday-Blitz-February-27-2024"]
[Site "Chess.com"]
[Date "2024.02.27"]
[Round "3"]
[White "Fernando_Offermann"]
[Black "LikeWater"]
[Result "0-1"]
[WhiteElo "2486"]
[BlackElo "2721"]
[TimeControl "180+1"]
[EndTime "8:24:21 PST"]
[Termination "LikeWater won by resignation"]

1. Nf3 {[%clk 0:02:59.6]} 1... d5 {[%clk 0:02:58.9]} 2. g3 {[%clk 0:02:59.8]}
2... c6 {[%clk 0:02:56.9]} 3. Bg2 {[%clk 0:03:00]} 3... Bf5 {[%clk 0:02:56.2]}
4. O-O {[%clk 0:02:59.6]} 4... e6 {[%clk 0:02:55.9]} 5. d3 {[%clk 0:02:59.9]}
5... Nd7 {[%clk 0:02:51.9]} 6. c4 {[%clk 0:03:00.1]} 6... h6 {[%clk 0:02:50.9]}
7. Be3 {[%clk 0:03:00.2]} 7... Ngf6 {[%clk 0:02:48.7]} 8. Qb3 {[%clk 0:03:00.3]}
8... Qc8 {[%clk 0:02:34.5]} 9. Nc3 {[%clk 0:02:58.8]} 9... Bd6 {[%clk
0:02:28.8]} 10. cxd5 {[%clk 0:02:57.8]} 10... exd5 {[%clk 0:02:27.8]} 11. Rac1
{[%clk 0:02:58]} 11... O-O {[%clk 0:02:24.9]} 12. Nh4 {[%clk 0:02:50.1]} 12...
Be6 {[%clk 0:02:22.8]} 13. Qd1 {[%clk 0:02:44.7]} 13... Qd8 {[%clk 0:02:10.9]}
14. a3 {[%clk 0:02:42.7]} 14... Ng4 {[%clk 0:02:11]} 15. Bd2 {[%clk 0:02:40.7]}
15... Nxh2 {[%clk 0:02:11.7]} 16. Re1 {[%clk 0:02:32.8]} 16... Ng4 {[%clk
0:02:06]} 17. e4 {[%clk 0:02:29.3]} 17... Qb6 {[%clk 0:01:53.7]} 18. Re2 {[%clk
0:02:24.6]} 18... Bxg3 {[%clk 0:01:47.8]} 19. Na4 {[%clk 0:02:24.4]} 19... Bxf2+
{[%clk 0:01:46.5]} 20. Kh1 {[%clk 0:02:08.8]} 20... Qc7 {[%clk 0:01:41.7]} 21.
Nf3 {[%clk 0:01:55.4]} 21... Qg3 {[%clk 0:01:35.7]} 0-1

[Event "Early-Titled-Tuesday-Blitz-February-27-2024"]
[Site "Chess.com"]
[Date "2024.02.27"]
[Round "3"]
[White "Zkid"]
[Black "Triumphmate"]
[Result "1-0"]
[WhiteElo "2923"]
[BlackElo "2523"]
[TimeControl "180+1"]
[EndTime "8:24:25 PST"]
[Termination "Zkid won by resignation"]

1. e4 {[%clk 0:03:00.9]} 1... d5 {[%clk 0:02:58.2]} 2. exd5 {[%clk 0:03:00.9]}
2... Nf6 {[%clk 0:02:57.6]} 3. d4 {[%clk 0:02:58.7]} 3... Bg4 {[%clk 0:02:57.5]}
4. f3 {[%clk 0:02:58.2]} 4... Bf5 {[%clk 0:02:57.4]} 5. c4 {[%clk 0:02:57.7]}
5... e6 {[%clk 0:02:57.7]} 6. g4 {[%clk 0:02:56.9]} 6... Nxg4 {[%clk 0:02:57.3]}
7. fxg4 {[%clk 0:02:56.3]} 7... Qh4+ {[%clk 0:02:57.2]} 8. Kd2 {[%clk
0:02:56.8]} 8... Be4 {[%clk 0:02:49.6]} 9. Nf3 {[%clk 0:02:51.9]} 9... Qf2+
{[%clk 0:02:49.7]} 10. Qe2 {[%clk 0:02:42]} 10... Qxf3 {[%clk 0:02:49.3]} 11.
Qxf3 {[%clk 0:02:42]} 11... Bxf3 {[%clk 0:02:50.2]} 12. Rg1 {[%clk 0:02:42.7]}
12... exd5 {[%clk 0:02:50.5]} 13. Rg3 {[%clk 0:02:40.3]} 13... Bd6 {[%clk
0:02:46.9]} 14. Rxf3 {[%clk 0:02:39.6]} 14... Nc6 {[%clk 0:02:43]} 15. cxd5
{[%clk 0:02:29.9]} 15... Nxd4 {[%clk 0:02:41.2]} 16. Re3+ {[%clk 0:02:30.3]}
16... Kd7 {[%clk 0:02:40.1]} 17. Kd3 {[%clk 0:02:13.4]} 17... c5 {[%clk
0:02:28.5]} 18. Nc3 {[%clk 0:02:12.1]} 18... Rac8 {[%clk 0:02:19.6]} 19. g5
{[%clk 0:01:56.2]} 19... f5 {[%clk 0:01:51.4]} 20. gxf6 {[%clk 0:01:52.8]} 20...
gxf6 {[%clk 0:01:52.3]} 21. Bh3+ {[%clk 0:01:50.9]} 21... f5 {[%clk 0:01:52.4]}
22. Ne2 {[%clk 0:01:50.7]} 22... Rcf8 {[%clk 0:01:43.8]} 23. Nxd4 {[%clk
0:01:49]} 23... cxd4 {[%clk 0:01:44.7]} 24. Rf3 {[%clk 0:01:49.3]} 24... Kc7
{[%clk 0:01:42.5]} 25. Bf4 {[%clk 0:01:49.2]} 1-0

[Event "Early-Titled-Tuesday-Blitz-February-27-2024"]
[Site "Chess.com"]
[Date "2024.02.27"]
[Round "3"]
[White "tetrix83"]
[Black "talaicito"]
[Result "1-0"]
[WhiteElo "2527"]
[BlackElo "2280"]
[TimeControl "180+1"]
[EndTime "8:24:40 PST"]
[Termination "tetrix83 won by resignation"]

1. e4 {[%clk 0:03:00.9]} 1... c5 {[%clk 0:02:53.4]} 2. Nf3 {[%clk 0:03:00.4]}
2... d6 {[%clk 0:02:52.2]} 3. Bb5+ {[%clk 0:02:59]} 3... Bd7 {[%clk 0:02:51.7]}
4. Bxd7+ {[%clk 0:02:58]} 4... Qxd7 {[%clk 0:02:52.6]} 5. O-O {[%clk 0:02:56.5]}
5... Nc6 {[%clk 0:02:51.1]} 6. c3 {[%clk 0:02:56.7]} 6... Nf6 {[%clk 0:02:49.2]}
7. d4 {[%clk 0:02:56.9]} 7... Nxe4 {[%clk 0:02:43.9]} 8. d5 {[%clk 0:02:56.8]}
8... Nd8 {[%clk 0:02:30.4]} 9. Re1 {[%clk 0:02:55.5]} 9... Nf6 {[%clk
0:02:27.9]} 10. Bg5 {[%clk 0:02:52.6]} 10... a6 {[%clk 0:02:11.8]} 11. c4 {[%clk
0:02:38.2]} 11... h6 {[%clk 0:02:04.3]} 12. Bxf6 {[%clk 0:02:37.5]} 12... gxf6
{[%clk 0:02:05.2]} 13. Nc3 {[%clk 0:02:37.5]} 13... b5 {[%clk 0:02:03.2]} 14.
Ne4 {[%clk 0:02:31.4]} 14... Bg7 {[%clk 0:02:02]} 15. Nh4 {[%clk 0:02:31.5]}
15... Kf8 {[%clk 0:01:55.8]} 16. Qh5 {[%clk 0:02:26.6]} 16... e6 {[%clk
0:01:41.3]} 17. dxe6 {[%clk 0:02:17.4]} 17... fxe6 {[%clk 0:01:39.7]} 18. Ng6+
{[%clk 0:02:14]} 18... Kg8 {[%clk 0:01:39.9]} 19. Nxh8 {[%clk 0:02:12]} 19...
Kxh8 {[%clk 0:01:39.3]} 20. Rad1 {[%clk 0:02:12.3]} 20... Nf7 {[%clk 0:01:32.6]}
21. Nxc5 {[%clk 0:02:09.6]} 21... Qa7 {[%clk 0:01:16.7]} 22. Nxe6 {[%clk
0:02:08.3]} 22... bxc4 {[%clk 0:01:09.1]} 23. Qg6 {[%clk 0:02:05]} 23... Rg8
{[%clk 0:01:09.1]} 24. Nxg7 {[%clk 0:02:04.9]} 24... Rxg7 {[%clk 0:01:08.7]} 25.
Re8+ {[%clk 0:02:04.5]} 1-0

[Event "Early-Titled-Tuesday-Blitz-February-27-2024"]
[Site "Chess.com"]
[Date "2024.02.27"]
[Round "3"]
[White "Beca95"]
[Black "ExchangeAB"]
[Result "1-0"]
[WhiteElo "2899"]
[BlackElo "2522"]
[TimeControl "180+1"]
[EndTime "8:24:47 PST"]
[Termination "Beca95 won by resignation"]

1. e4 {[%clk 0:03:00.9]} 1... c6 {[%clk 0:03:00.3]} 2. d4 {[%clk 0:03:00.6]}
2... d5 {[%clk 0:03:01.2]} 3. e5 {[%clk 0:02:59.6]} 3... Bf5 {[%clk 0:03:01.2]}
4. c4 {[%clk 0:02:58.9]} 4... e6 {[%clk 0:03:01.7]} 5. Nc3 {[%clk 0:02:58.7]}
5... Ne7 {[%clk 0:03:02.3]} 6. Nge2 {[%clk 0:02:57.1]} 6... Nd7 {[%clk
0:03:02.1]} 7. Ng3 {[%clk 0:02:56]} 7... Bg6 {[%clk 0:03:02.4]} 8. h4 {[%clk
0:02:55.4]} 8... h6 {[%clk 0:03:02.8]} 9. h5 {[%clk 0:02:51.9]} 9... Bh7 {[%clk
0:03:02.9]} 10. Bd3 {[%clk 0:02:51.1]} 10... Bxd3 {[%clk 0:03:02.1]} 11. Qxd3
{[%clk 0:02:52]} 11... dxc4 {[%clk 0:03:02.2]} 12. Qxc4 {[%clk 0:02:52.9]} 12...
Nd5 {[%clk 0:03:02.5]} 13. Qe2 {[%clk 0:02:50.2]} 13... Rc8 {[%clk 0:03:00]} 14.
Nge4 {[%clk 0:02:48.2]} 14... Nxc3 {[%clk 0:02:59.8]} 15. bxc3 {[%clk
0:02:47.9]} 15... Be7 {[%clk 0:02:58.9]} 16. Qg4 {[%clk 0:02:46.7]} 16... Bf8
{[%clk 0:02:49.9]} 17. f4 {[%clk 0:02:41.9]} 17... c5 {[%clk 0:02:42.9]} 18. Be3
{[%clk 0:02:16.6]} 18... cxd4 {[%clk 0:02:41.6]} 19. Bxd4 {[%clk 0:02:16.9]}
19... b6 {[%clk 0:02:32.4]} 20. Rd1 {[%clk 0:02:05.7]} 20... Qc7 {[%clk
0:02:31.9]} 21. O-O {[%clk 0:02:02.4]} 21... Qc6 {[%clk 0:02:31]} 22. f5 {[%clk
0:02:01.8]} 22... Nc5 {[%clk 0:02:20.2]} 23. Nd6+ {[%clk 0:01:32.4]} 23... Bxd6
{[%clk 0:02:18.5]} 24. Qxg7 {[%clk 0:01:29.8]} 24... Rf8 {[%clk 0:02:01.4]} 25.
exd6 {[%clk 0:01:28.7]} 25... Qxd6 {[%clk 0:01:47.1]} 26. Be5 {[%clk 0:01:27.9]}
26... Qc6 {[%clk 0:01:43.4]} 27. Bd6 {[%clk 0:01:28.1]} 1-0

[Event "Early-Titled-Tuesday-Blitz-February-27-2024"]
[Site "Chess.com"]
[Date "2024.02.27"]
[Round "3"]
[White "BardArtem"]
[Black "Rud_Makarian"]
[Result "0-1"]
[WhiteElo "2767"]
[BlackElo "3113"]
[TimeControl "180+1"]
[EndTime "8:24:48 PST"]
[Termination "Rud_Makarian won by resignation"]

1. e4 {[%clk 0:02:59.4]} 1... c5 {[%clk 0:03:00.2]} 2. Nf3 {[%clk 0:02:48]} 2...
e6 {[%clk 0:02:59.6]} 3. d4 {[%clk 0:02:47.5]} 3... cxd4 {[%clk 0:03:00.5]} 4.
Nxd4 {[%clk 0:02:48.4]} 4... Nc6 {[%clk 0:03:01]} 5. Nc3 {[%clk 0:02:48.5]} 5...
Qc7 {[%clk 0:03:01.4]} 6. Nxc6 {[%clk 0:02:41.7]} 6... bxc6 {[%clk 0:03:02.3]}
7. Bd3 {[%clk 0:02:41.9]} 7... d5 {[%clk 0:03:02.3]} 8. exd5 {[%clk 0:02:42.8]}
8... cxd5 {[%clk 0:03:02.2]} 9. Nb5 {[%clk 0:02:43.3]} 9... Qb8 {[%clk
0:02:43.5]} 10. g3 {[%clk 0:02:42.8]} 10... a6 {[%clk 0:02:20.2]} 11. Bf4 {[%clk
0:02:41.7]} 11... e5 {[%clk 0:02:20]} 12. Qe2 {[%clk 0:02:40.9]} 12... f6 {[%clk
0:02:15.3]} 13. Nc3 {[%clk 0:02:24.8]} 13... Qxb2 {[%clk 0:01:37.4]} 14. Bxe5
{[%clk 0:01:40.9]} 14... Qxa1+ {[%clk 0:01:34.4]} 15. Kd2 {[%clk 0:01:39.2]}
15... Qxh1 {[%clk 0:01:34.9]} 16. Bxf6+ {[%clk 0:01:31.3]} 16... Kf7 {[%clk
0:01:31.4]} 17. Qh5+ {[%clk 0:01:26.2]} 17... g6 {[%clk 0:01:26.1]} 0-1

[Event "Early-Titled-Tuesday-Blitz-February-27-2024"]
[Site "Chess.com"]
[Date "2024.02.27"]
[Round "3"]
[White "rhungaski"]
[Black "Charodej1"]
[Result "1-0"]
[WhiteElo "2597"]
[BlackElo "2302"]
[TimeControl "180+1"]
[EndTime "8:24:49 PST"]
[Termination "rhungaski won by resignation"]

1. e4 {[%clk 0:03:00.9]} 1... e5 {[%clk 0:02:58.8]} 2. Nf3 {[%clk 0:03:00.2]}
2... Nc6 {[%clk 0:02:58.7]} 3. d4 {[%clk 0:03:00.7]} 3... exd4 {[%clk
0:02:58.3]} 4. Nxd4 {[%clk 0:03:01.3]} 4... Bc5 {[%clk 0:02:58.3]} 5. Be3 {[%clk
0:03:00.1]} 5... Bb6 {[%clk 0:02:56.9]} 6. Nf5 {[%clk 0:02:55.1]} 6... Qf6
{[%clk 0:02:43.9]} 7. Nc3 {[%clk 0:02:29.4]} 7... Ba5 {[%clk 0:02:18.3]} 8. Qd2
{[%clk 0:02:19.1]} 8... d5 {[%clk 0:01:46.6]} 9. exd5 {[%clk 0:02:06.6]} 9...
Bxf5 {[%clk 0:01:46.3]} 10. dxc6 {[%clk 0:02:06.4]} 10... bxc6 {[%clk 0:01:47]}
11. O-O-O {[%clk 0:01:55.7]} 11... Nh6 {[%clk 0:00:55.7]} 12. Bg5 {[%clk
0:01:50.6]} 1-0

[Event "Early-Titled-Tuesday-Blitz-February-27-2024"]
[Site "Chess.com"]
[Date "2024.02.27"]
[Round "3"]
[White "Zheenbekov86"]
[Black "SashaKuzhilniy"]
[Result "0-1"]
[WhiteElo "2423"]
[BlackElo "2610"]
[TimeControl "180+1"]
[EndTime "8:24:52 PST"]
[Termination "SashaKuzhilniy won by resignation"]

1. Nf3 {[%clk 0:03:00]} 1... d5 {[%clk 0:02:57.7]} 2. g3 {[%clk 0:02:58.9]} 2...
Nd7 {[%clk 0:02:57.9]} 3. d4 {[%clk 0:02:55.7]} 3... Nb6 {[%clk 0:02:56.3]} 4.
Bg2 {[%clk 0:02:55.7]} 4... Nf6 {[%clk 0:02:56.9]} 5. O-O {[%clk 0:02:55.7]}
5... Bf5 {[%clk 0:02:57.5]} 6. Ne5 {[%clk 0:02:41.7]} 6... e6 {[%clk 0:02:56.1]}
7. b3 {[%clk 0:02:40.7]} 7... Be7 {[%clk 0:02:54.7]} 8. Bb2 {[%clk 0:02:40.6]}
8... O-O {[%clk 0:02:55.1]} 9. Nd2 {[%clk 0:02:40.7]} 9... Rc8 {[%clk
0:02:51.7]} 10. a4 {[%clk 0:02:31.9]} 10... c5 {[%clk 0:02:51.6]} 11. a5 {[%clk
0:02:27.2]} 11... Nbd7 {[%clk 0:02:51.5]} 12. Ndc4 {[%clk 0:02:04.5]} 12... dxc4
{[%clk 0:02:44.3]} 13. Bxb7 {[%clk 0:01:59]} 13... Rc7 {[%clk 0:02:36.6]} 14.
Nc6 {[%clk 0:01:49.4]} 14... Qe8 {[%clk 0:02:34.3]} 15. a6 {[%clk 0:01:49.2]}
15... cxb3 {[%clk 0:02:31.6]} 16. cxb3 {[%clk 0:01:48.2]} 16... Be4 {[%clk
0:02:29.4]} 17. Na5 {[%clk 0:01:44.2]} 17... Nb6 {[%clk 0:02:23.2]} 18. f3
{[%clk 0:01:37.7]} 18... Bg6 {[%clk 0:02:20.2]} 19. e4 {[%clk 0:01:37.2]} 19...
cxd4 {[%clk 0:02:20.1]} 20. Kh1 {[%clk 0:01:31.8]} 20... Qb5 {[%clk 0:02:19.5]}
21. Qxd4 {[%clk 0:01:15.7]} 21... Rd8 {[%clk 0:02:14.5]} 22. Qf2 {[%clk
0:01:12.6]} 22... Bc5 {[%clk 0:02:03.9]} 23. Qe1 {[%clk 0:01:07]} 23... Bb4
{[%clk 0:02:02.7]} 0-1

[Event "Early-Titled-Tuesday-Blitz-February-27-2024"]
[Site "Chess.com"]
[Date "2024.02.27"]
[Round "3"]
[White "Barbix1"]
[Black "Lion-Al-Messi"]
[Result "0-1"]
[WhiteElo "2272"]
[BlackElo "2508"]
[TimeControl "180+1"]
[EndTime "8:25:07 PST"]
[Termination "Lion-Al-Messi won by resignation"]

1. e4 {[%clk 0:03:00.9]} 1... e6 {[%clk 0:02:59.6]} 2. d4 {[%clk 0:02:58.5]}
2... d5 {[%clk 0:03:00.1]} 3. Nc3 {[%clk 0:02:58.8]} 3... Nf6 {[%clk 0:02:58.8]}
4. e5 {[%clk 0:02:58.5]} 4... Nfd7 {[%clk 0:02:59.3]} 5. f4 {[%clk 0:02:52.1]}
5... c5 {[%clk 0:02:59.5]} 6. Nf3 {[%clk 0:02:51.6]} 6... Nc6 {[%clk 0:02:59.8]}
7. Be3 {[%clk 0:02:38.3]} 7... a6 {[%clk 0:02:58]} 8. a3 {[%clk 0:02:37.6]} 8...
b5 {[%clk 0:02:57.7]} 9. dxc5 {[%clk 0:02:35.5]} 9... Bxc5 {[%clk 0:02:57.5]}
10. Bxc5 {[%clk 0:02:34.8]} 10... Nxc5 {[%clk 0:02:58.4]} 11. b4 {[%clk
0:02:34.8]} 11... Nd7 {[%clk 0:02:54.1]} 12. Bd3 {[%clk 0:02:33.1]} 12... Qb6
{[%clk 0:02:53.8]} 13. Qd2 {[%clk 0:02:26.8]} 13... Bb7 {[%clk 0:02:53.4]} 14.
Ne2 {[%clk 0:02:26.2]} 14... Rc8 {[%clk 0:02:52.8]} 15. g4 {[%clk 0:02:06]}
15... h5 {[%clk 0:02:51.1]} 16. Rg1 {[%clk 0:02:01.3]} 16... hxg4 {[%clk
0:02:50.6]} 17. Rxg4 {[%clk 0:02:01.2]} 17... g6 {[%clk 0:02:51.2]} 18. h4
{[%clk 0:01:54.6]} 18... Ne7 {[%clk 0:02:50]} 19. Ng3 {[%clk 0:01:50.5]} 19...
Nf5 {[%clk 0:02:49.6]} 20. Nxf5 {[%clk 0:01:49.1]} 20... gxf5 {[%clk 0:02:50.5]}
21. Rg7 {[%clk 0:01:48.2]} 21... Nf8 {[%clk 0:02:47.2]} 22. Qf2 {[%clk
0:01:40.3]} 22... Qxf2+ {[%clk 0:02:46.3]} 23. Kxf2 {[%clk 0:01:41.2]} 23... Ng6
{[%clk 0:02:47]} 24. Ng5 {[%clk 0:01:30.9]} 24... Nxf4 {[%clk 0:02:25.4]} 25.
Nxf7 {[%clk 0:01:22.4]} 25... Kf8 {[%clk 0:02:24.7]} 0-1